lending/lending_fUSD_20260104
["ID","MTS","AMOUNT","RATE_DAILY","PERIOD"]
[400417049,1767533449154,-292.50000001,0.00018,2]
[400417050,1767533466938,151.0,0.0004366,65]
[400417051,1767533470696,297.265166,0.0004366,65]
[400417052,1767533470998,297.265166,0.0004366,65]
[400417053,1767533471331,297.265166,0.0004366,65]
[400417054,1767533471642,297.265166,0.0004366,65]
[400417057,1767533471923,297.265166,0.0004366,65]
[400417058,1767533472228,297.265166,0.0004366,65]
[400417059,1767533472545,297.265166,0.0004366,65]
[400417060,1767533472838,297.265166,0.0004366,65]
[400417061,1767533473149,297.265166,0.0004366,65]
[400417062,1767533473437,297.265166,0.0004366,65]
[400417063,1767533473732,297.265166,0.0004366,65]
[400417064,1767533474053,297.265166,0.0004366,65]
[400417065,1767533474381,297.265166,0.0004366,65]
[400417066,1767533474677,297.265166,0.0004366,65]
[400417067,1767533474983,297.265166,0.0004366,65]
[400417068,1767533475280,297.265166,0.0004366,65]
[400417069,1767533475579,297.265166,0.0004366,65]
[400417070,1767533475864,297.265166,0.0004366,65]
[400417071,1767533476157,297.265166,0.0004366,65]
[400417072,1767533476445,297.265174,0.0004366,65]
[400417079,1767533505019,151.0,0.0004366,65]
[400417080,1767533505436,151.0,0.0004366,65]
[400417081,1767533505949,277.50853408,0.00015797,2]
[400417084,1767533506092,1302.87577202,0.00016438,2]
[400417087,1767533506650,206.13287334,0.00015797,2]
[400417089,1767533506982,500.0,0.00015797,2]
[400417090,1767533507026,1302.87577202,0.00016438,2]
[400417092,1767533507311,361.89261299,0.00015797,2]
[400417093,1767533507347,1302.87577202,0.00016438,2]
[400417096,1767533507886,1302.87577202,0.00016438,2]
[400417098,1767533507989,-165.16,0.00016712,2]
[400417099,1767533508011,-1000.0,0.00017096,2]
[400417100,1767533508033,-151.0,0.00017467,2]
[400417101,1767533508054,-151.0,0.00017467,2]
[400417102,1767533508075,-151.0,0.00017467,2]
[400417103,1767533508097,-151.0,0.00017469,2]
[400417104,1767533508118,-151.0,0.00017472,2]
[400417105,1767533508139,-156.84931012,0.00017472,10]
[400417106,1767533508160,-151.35,0.00017504,2]
[400417107,1767533508180,-151.0,0.00017504,2]
[400417108,1767533508203,-151.0,0.00017504,2]
[400417109,1767533508225,-151.0,0.00017526,2]
[400417110,1767533508259,1302.87577202,0.00016438,2]
[400417112,1767533508491,1302.87577202,0.00016438,2]
[400417114,1767533508520,292.88914584,0.00016438,2]
[400417115,1767533508554,1009.98662618,0.00016438,2]
[400417116,1767533508589,1302.87577202,0.00016438,2]
[400417117,1767533508624,1130.11049331,0.00016438,2]
[400417119,1767533508651,172.76527871,0.00016438,2]
[400417121,1767533508684,1302.87577202,0.00016438,2]
[400417123,1767533508720,1302.87577202,0.00016438,2]
[400417125,1767533508754,1302.87577202,0.00016438,2]
[400417127,1767533508786,1302.87577202,0.00016438,2]
[400417129,1767533508823,1302.87577202,0.00016438,2]
[400417131,1767533508855,1302.87577202,0.00016438,2]
[400417132,1767533508913,1302.87577202,0.00016438,2]
[400417133,1767533509028,707.11431715,0.00016438,2]
[400417134,1767533509062,595.76145487,0.00016438,2]
[400417146,1767533520120,837.5629963,0.00016438,2]
[400417163,1767533528982,10000.01,0.00015798,2]
[400417164,1767533529014,10000.01,0.00015798,2]
[400417165,1767533529045,10000.01,0.00015798,2]
[400417166,1767533529077,10000.01,0.00015798,2]
[400417167,1767533529108,10000.01,0.00015798,2]
[400417168,1767533529139,10000.01,0.00015798,2]
[400417169,1767533529171,10000.01,0.00015798,2]
[400417170,1767533529202,10000.01,0.00015798,2]
[400417171,1767533529232,10000.01,0.00015798,2]
[400417172,1767533529262,10000.01,0.00015798,2]
[400417173,1767533530613,151.0,0.0004366,65]
[400417174,1767533530921,151.0,0.0004366,65]
[400417175,1767533539786,178.0396252,0.00015797,2]
[400417176,1767533539825,24.76902363,0.00015797,2]
[400417192,1767533569332,186.16778178,0.00015698,2]
[400417193,1767533581917,300.0,0.00015797,2]
[400417202,1767533590051,5006.03758695,0.00015698,2]
[400417203,1767533594246,1200.0,0.00015797,2]
[400417205,1767533602762,500.0,0.0004366,120]
[400417206,1767533602995,500.0,0.0004366,120]
[400417207,1767533603234,500.0,0.0004366,120]
[400417208,1767533603485,500.0,0.0004366,120]
[400417209,1767533603733,500.0,0.0004366,120]
[400417210,1767533604018,500.0,0.0004366,120]
[400417211,1767533604134,500.0,0.00015797,2]
[400417212,1767533604168,500.0,0.00015797,2]
[400417213,1767533604204,500.0,0.00015797,2]
[400417214,1767533604264,500.0,0.0004366,120]
[400417215,1767533604303,500.0,0.00015797,2]
[400417216,1767533604341,500.0,0.00015797,2]
[400417217,1767533604376,500.0,0.00015797,2]
[400417218,1767533604412,500.0,0.00015797,2]
[400417219,1767533604451,500.0,0.00015797,2]
[400417220,1767533604488,500.0,0.00015797,2]
[400417221,1767533604525,500.0,0.00015797,2]
[400417222,1767533604562,500.0,0.00015797,2]
[400417223,1767533604597,449.85495309,0.00015797,2]
[400417224,1767533604638,500.0,0.00015797,2]
[400417225,1767533604673,500.0,0.00015797,2]
[400417226,1767533604729,500.0,0.0004366,120]
[400417227,1767533604765,500.0,0.00015797,2]
[400417228,1767533604801,500.0,0.00015797,2]
[400417229,1767533604835,500.0,0.00015797,2]
[400417230,1767533604871,500.0,0.00015797,2]
[400417231,1767533604906,500.0,0.00015797,2]
[400417232,1767533604946,500.0,0.00015797,2]
[400417233,1767533604987,50.15504691,0.00015797,2]
[400417234,1767533605015,449.84495309,0.00015797,2]
[400417235,1767533605070,500.0,0.0004366,120]
[400417236,1767533605106,500.0,0.00015797,2]
[400417237,1767533605147,500.0,0.00015797,2]
[400417238,1767533605184,500.0,0.00015797,2]
[400417239,1767533605219,500.0,0.00015797,2]
[400417240,1767533605257,500.0,0.00015797,2]
[400417241,1767533605296,500.0,0.00015797,2]
[400417242,1767533605353,500.0,0.0004366,120]
[400417243,1767533605391,500.0,0.00015797,2]
[400417244,1767533605433,500.0,0.00015797,2]
[400417245,1767533605474,500.0,0.00015797,2]
[400417246,1767533605692,500.0,0.00015797,2]
[400417247,1767533605760,500.0,0.0004366,120]
[400417248,1767533605804,500.0,0.00015797,2]
[400417249,1767533605841,500.0,0.00015797,2]
[400417250,1767533605886,500.0,0.00015797,2]
[400417251,1767533605939,500.0,0.0004366,120]
[400417252,1767533605976,500.0,0.00015797,2]
[400417253,1767533606010,500.0,0.00015797,2]
[400417254,1767533606044,500.0,0.00015797,2]
[400417255,1767533606101,500.0,0.0004366,120]
[400417256,1767533606159,500.0,0.0004366,120]
[400417257,1767533606394,500.0,0.0004366,120]
[400417258,1767533607013,500.0,0.0004366,120]
[400417259,1767533607272,500.0,0.0004366,120]
[400417260,1767533607511,500.0,0.0004366,120]
[400417261,1767533607743,500.0,0.0004366,120]
[400417262,1767533607967,592.13047037,0.0004366,120]
[400417263,1767533616029,500.0,0.00015797,2]
[400417264,1767533616073,500.0,0.00015797,2]
[400417265,1767533616115,500.0,0.00015797,2]
[400417266,1767533616157,50.16504691,0.00015797,2]
[400417267,1767533616185,449.83495309,0.00015797,2]
[400417268,1767533616233,500.0,0.00015797,2]
[400417269,1767533616290,500.0,0.00015797,2]
[400417270,1767533616341,500.0,0.00015797,2]
[400417271,1767533616394,500.0,0.00015797,2]
[400417272,1767533616440,500.0,0.00015797,2]
[400417273,1767533616485,500.0,0.00015797,2]
[400417274,1767533616531,500.0,0.00015797,2]
[400417275,1767533616577,500.0,0.00015797,2]
[400417276,1767533616623,500.0,0.00015797,2]
[400417277,1767533616662,500.0,0.00015797,2]
[400417278,1767533616705,500.0,0.00015797,2]
[400417279,1767533616748,500.0,0.00015797,2]
[400417280,1767533616792,500.0,0.00015797,2]
[400417281,1767533616836,500.0,0.00015797,2]
[400417282,1767533616877,500.0,0.00015797,2]
[400417283,1767533616915,500.0,0.00015797,2]
[400417284,1767533616952,500.0,0.00015797,2]
[400417285,1767533616988,500.0,0.00015797,2]
[400417286,1767533617025,500.0,0.00015797,2]
[400417287,1767533617061,50.17504691,0.00015797,2]
[400417288,1767533617089,449.82495309,0.00015797,2]
[400417289,1767533617126,500.0,0.00015797,2]
[400417290,1767533617166,500.0,0.00015797,2]
[400417291,1767533617202,500.0,0.00015797,2]
[400417292,1767533617238,500.0,0.00015797,2]
[400417293,1767533617276,500.0,0.00015797,2]
[400417294,1767533617321,500.0,0.00015797,2]
[400417295,1767533617361,500.0,0.00015797,2]
[400417296,1767533617400,500.0,0.00015797,2]
[400417297,1767533617441,500.0,0.00015797,2]
[400417298,1767533617478,500.0,0.00015797,2]
[400417299,1767533617525,500.0,0.00015797,2]
[400417300,1767533617564,500.0,0.00015797,2]
[400417301,1767533617608,500.0,0.00015797,2]
[400417302,1767533617653,500.0,0.00015797,2]
[400417303,1767533641320,300.0,0.00015797,2]
[400417307,1767533682151,177.31565734,0.00015698,2]
[400417308,1767533701223,300.0,0.00015797,2]
[400417309,1767533701377,300.0,0.00015797,2]
[400417310,1767533701413,1200.0,0.00015797,2]
[400417313,1767533711930,402530.0,0.00043659,30]
[400417314,1767533724179,272.86938957,0.000129,2]
[400417315,1767533724207,3309.54771752,0.000129,2]
[400417316,1767533728552,151.0,0.00043659,60]
[400417317,1767533731626,714.757392,0.00043659,65]
[400417318,1767533731775,714.757392,0.00043659,65]
[400417319,1767533732053,714.757392,0.00043659,65]
[400417320,1767533732345,714.757392,0.00043659,65]
[400417321,1767533732632,714.757392,0.00043659,65]
[400417322,1767533732929,714.757392,0.00043659,65]
[400417323,1767533733219,714.757392,0.00043659,65]
[400417324,1767533733512,714.757392,0.00043659,65]
[400417325,1767533733783,714.757392,0.00043659,65]
[400417326,1767533734090,714.757392,0.00043659,65]
[400417327,1767533734371,714.757392,0.00043659,65]
[400417328,1767533734647,714.757392,0.00043659,65]
[400417329,1767533735021,714.757392,0.00043659,65]
[400417330,1767533735320,714.757392,0.00043659,65]
[400417331,1767533735616,714.757392,0.00043659,65]
[400417332,1767533735900,714.757392,0.00043659,65]
[400417333,1767533736218,714.757392,0.00043659,65]
[400417334,1767533736502,714.757392,0.00043659,65]
[400417335,1767533736787,714.757392,0.00043659,65]
[400417336,1767533737080,714.757396,0.00043659,65]
[400417337,1767533740767,175.512054,0.00043659,65]
[400417338,1767533743894,5452.73524143,0.00015698,2]
[400417339,1767533761414,300.0,0.00015797,2]
[400417341,1767533764376,423917.33862736,0.00043659,30]
[400417342,1767533765828,300.0,0.00015797,2]
[400417343,1767533766170,289.04661735,0.00015797,2]
[400417346,1767533781605,348.6804237,0.00015797,2]
[400417347,1767533781639,151.3195763,0.00015797,2]
[400417348,1767533781685,500.0,0.00015797,2]
[400417349,1767533781734,500.0,0.00015797,2]
[400417350,1767533781780,500.0,0.00015797,2]
[400417351,1767533781826,500.0,0.00015797,2]
[400417352,1767533781883,500.0,0.00015797,2]
[400417353,1767533781940,500.0,0.00015797,2]
[400417354,1767533781988,500.0,0.00015797,2]
[400417355,1767533782036,500.0,0.00015797,2]
[400417356,1767533782080,500.0,0.00015797,2]
[400417357,1767533782120,402.77415027,0.00015797,2]
[400417358,1767533782168,500.0,0.00015797,2]
[400417359,1767533782224,500.0,0.00015797,2]
[400417360,1767533782275,500.0,0.00015797,2]
[400417361,1767533800802,500.0,0.00015797,2]
[400417362,1767533800851,500.0,0.00015797,2]
[400417363,1767533800920,500.0,0.00015797,2]
[400417364,1767533800962,402.77415027,0.00015797,2]
[400417365,1767533801004,500.0,0.00015797,2]
[400417366,1767533801045,500.0,0.00015797,2]
[400417367,1767533801086,500.0,0.00015797,2]
[400417368,1767533805074,43.14212316,0.00013699,2]
[400417369,1767533805101,686.77787684,0.00013699,2]
[400417371,1767533814761,500.0,0.00015797,2]
[400417372,1767533815158,332.35941423,0.00015797,2]
[400417375,1767533821278,300.0,0.00015797,2]
[400417391,1767533832299,500.0,0.00015797,2]
[400417392,1767533832351,500.0,0.00015797,2]
[400417393,1767533832410,500.0,0.00015797,2]
[400417394,1767533832464,357.77785913,0.00015797,2]
[400417395,1767533832515,500.0,0.00015797,2]
[400417396,1767533850722,500.0,0.00015797,2]
[400417397,1767533851093,500.0,0.00015797,2]
[400417398,1767533852337,500.0,0.00015797,2]
[400417399,1767533852387,151.08384487,0.00015797,2]
[400417401,1767533861365,356.9226,0.00015698,2]
[400417402,1767533862365,500.0,0.00015797,2]
[400417403,1767533862413,500.0,0.00015797,2]
[400417404,1767533862471,500.0,0.00015797,2]
[400417405,1767533862523,500.0,0.00015797,2]
[400417406,1767533862596,250.0,0.00015797,2]
[400417407,1767533876142,209.46793767,0.00015797,2]
[400417408,1767533881251,500.0,0.00015797,2]
[400417409,1767533881373,300.0,0.00015797,2]
[400417410,1767533886495,500.0,0.00015797,2]
[400417411,1767533893662,55.62046726,0.00015797,2]
[400417412,1767533893691,1144.37953274,0.00015797,2]
[400417413,1767533897060,500.0,0.00015797,2]
[400417431,1767533941435,300.0,0.00015797,2]
[400417432,1767533941858,300.0,0.00015797,2]
[400417433,1767533945855,202.33263215,0.00015797,2]
[400417442,1767533976122,5279.55739621,0.00015698,2]
[400417443,1767533979939,500.0,0.00015797,2]
[400417444,1767533980000,500.0,0.00015797,2]
[400417445,1767533980038,500.0,0.00015797,2]
[400417446,1767533980084,500.0,0.00015797,2]
[400417447,1767533980141,273.7404389,0.00015797,2]
[400417448,1767533980168,226.2595611,0.00015797,2]
[400417449,1767533980204,500.0,0.00015797,2]
[400417450,1767533980239,329.11086273,0.00015797,2]
[400417463,1767533997913,257.8886,0.00015698,2]
[400417464,1767534001217,300.0,0.00015797,2]
[400417465,1767534001255,300.0,0.00015797,2]
[400417466,1767534001305,1200.0,0.00015797,2]
[400417474,1767534004124,6886.75097617,0.00015698,2]
[400417475,1767534004152,10000.01,0.00015698,2]
[400417476,1767534004180,4009.98832383,0.00015698,2]
[400417477,1767534010326,2500.0,0.00015698,2]
[400417478,1767534017218,5112.14,0.00015496,2]
[400417479,1767534022315,1856.5331,0.00015698,2]
[400417480,1767534022843,207.4,0.00015788,3]
[400417481,1767534039433,323.9369,0.00015797,2]
[400417484,1767534039465,176.0631,0.00015797,2]
[400417485,1767534039500,500.0,0.00015797,2]
[400417487,1767534039534,500.0,0.00015797,2]
[400417489,1767534039574,500.0,0.00015797,2]
[400417490,1767534039613,500.0,0.00015797,2]
[400417491,1767534039664,500.0,0.00015797,2]
[400417492,1767534039710,500.0,0.00015797,2]
[400417493,1767534039769,500.0,0.00015797,2]
[400417494,1767534039838,226.12441597,0.00015797,2]
[400417495,1767534040708,2875.02,0.00015495,2]
[400417496,1767534043663,308.32,0.00015788,3]
[400417497,1767534051579,1000.0,0.00015492,2]
[400417498,1767534053667,500.0,0.00015797,2]
[400417499,1767534053901,500.0,0.00015797,2]
[400417501,1767534059950,500.0,0.00015797,2]
[400417502,1767534060523,414.48248403,0.00015797,2]
[400417503,1767534060558,85.51751597,0.00015797,2]
[400417504,1767534060882,500.0,0.00015797,2]
[400417505,1767534060957,181.53188021,0.00015797,2]
[400417506,1767534061223,500.0,0.00015797,2]
[400417507,1767534061315,300.0,0.00015797,2]
[400417508,1767534061663,500.0,0.00015797,2]
[400417509,1767534062027,500.0,0.00015797,2]
[400417515,1767534062806,500.0,0.00015797,2]
[400417517,1767534062861,500.0,0.00015797,2]
[400417527,1767534067799,500.0,0.00015797,2]
[400417528,1767534068034,500.0,0.00015797,2]
[400417529,1767534068126,5432.96060382,7.945e-05,2]
[400417530,1767534068154,232.79646218,7.945e-05,2]
[400417531,1767534072484,500.0,0.00015797,2]
[400417532,1767534073601,500.0,0.00015797,2]
[400417533,1767534073895,500.0,0.00015797,2]
[400417534,1767534073938,500.0,0.00015797,2]
[400417535,1767534073998,500.0,0.00015797,2]
[400417536,1767534074033,500.0,0.00015797,2]
[400417537,1767534074077,534.57318269,0.00015797,2]
[400417538,1767534074129,185.23450302,0.00015797,2]
[400417539,1767534076902,567.14001468,0.00015797,2]
[400417540,1767534092896,500.0,0.00015797,2]
[400417541,1767534092936,500.0,0.00015797,2]
[400417542,1767534092974,500.0,0.00015797,2]
[400417543,1767534093014,185.23450302,0.00015797,2]
[400417544,1767534093053,500.0,0.00015797,2]
[400417545,1767534093090,500.0,0.00015797,2]
[400417546,1767534093128,500.0,0.00015797,2]
[400417547,1767534093166,500.0,0.00015797,2]
[400417548,1767534093205,500.0,0.00015797,2]
[400417549,1767534093243,500.0,0.00015797,2]
[400417550,1767534093413,500.0,0.00015797,2]
[400417551,1767534093455,295.03133441,0.00015797,2]
[400417552,1767534093487,204.96866559,0.00015797,2]
[400417553,1767534093527,500.0,0.00015797,2]
[400417554,1767534093568,500.0,0.00015797,2]
[400417555,1767534093616,500.0,0.00015797,2]
[400417556,1767534093660,500.0,0.00015797,2]
[400417557,1767534093701,185.26784688,0.00015797,2]
[400417558,1767534093753,500.0,0.00015797,2]
[400417559,1767534093795,1023.944,0.00015482,2]
[400417560,1767534093833,158.248,0.00015482,2]
[400417561,1767534093877,500.0,0.00015797,2]
[400417562,1767534093925,500.0,0.00015797,2]
[400417563,1767534094185,500.0,0.00015797,2]
[400417564,1767534094228,500.0,0.00015797,2]
[400417565,1767534106490,999.0,0.00015526,3]
[400417566,1767534122863,300.0,0.00015797,2]
[400417567,1767534126396,2628.58148753,0.00015698,2]
[400417568,1767534126425,1477.69711247,0.00015698,2]
[400417569,1767534126737,151.0,0.00015798,2]
[400417570,1767534127382,151.0,0.00015798,2]
[400417571,1767534128049,151.0,0.00015798,2]
[400417572,1767534128671,151.0,0.00015798,2]
[400417573,1767534129300,151.0,0.00015798,2]
[400417574,1767534129898,151.0,0.00015798,2]
[400417575,1767534130555,151.0,0.00015798,2]
[400417576,1767534131159,151.0,0.00015798,2]
[400417577,1767534131883,151.0,0.00015798,2]
[400417578,1767534132466,295.60980113,0.00015356,2]
[400417579,1767534132501,151.0,0.00015798,2]
[400417580,1767534132637,4614.2651,0.00015698,2]
[400417581,1767534133098,151.0,0.00015798,2]
[400417582,1767534133763,151.0,0.00015798,2]
[400417583,1767534134426,151.0,0.00015798,2]
[400417584,1767534135188,151.0,0.00015798,2]
[400417585,1767534135895,151.0,0.00015798,2]
[400417586,1767534136961,188.48506562,0.00015798,2]
[400417587,1767534144526,-500.0,0.00015797,2]
[400417588,1767534144559,-373.78432306,0.00015797,2]
[400417589,1767534144591,-500.0,0.00015797,2]
[400417590,1767534144624,-500.0,0.00015797,2]
[400417591,1767534144658,-500.0,0.00015797,2]
[400417592,1767534144693,-500.0,0.00015797,2]
[400417593,1767534144726,-500.0,0.00015797,2]
[400417594,1767534144759,-500.0,0.00015797,2]
[400417595,1767534144791,-500.0,0.00015797,2]
[400417596,1767534144824,-500.0,0.00015797,2]
[400417597,1767534145308,-500.0,0.00015797,2]
[400417598,1767534145342,-500.0,0.00015797,2]
[400417599,1767534145379,-500.0,0.00015797,2]
[400417600,1767534145411,-500.0,0.00015797,2]
[400417601,1767534145443,-500.0,0.00015797,2]
[400417602,1767534145474,-500.0,0.00015797,2]
[400417603,1767534161050,-517.10426482,0.00015797,2]
[400417604,1767534161083,-500.0,0.00015797,2]
[400417605,1767534161117,-159.82665654,0.00015797,2]
[400417606,1767534181831,-300.0,0.00015797,2]
[400417607,1767534181866,-184.38102748,0.00015797,2]
[400417608,1767534182765,-6307.23743728,0.00015798,2]
[400417609,1767534188447,-10000.01,0.00015798,2]
[400417610,1767534188656,-10000.01,0.00015798,2]
[400417611,1767534188868,-10000.01,0.00015798,2]
[400417612,1767534189069,-10000.01,0.00015798,2]
[400417613,1767534194756,-10000.01,0.00015798,2]
[400417615,1767534201611,-1200.0,0.00015797,2]
[400417616,1767534214762,7600.01,0.0001569,2]
[400417617,1767534214792,10000.01,0.0001569,2]
[400417618,1767534214819,2399.98,0.0001569,2]
[400417619,1767534249744,7600.03,0.0001578,2]
[400417620,1767534249770,3930.97,0.0001578,2]
[400417621,1767534253984,5246.94593062,0.00015698,2]
[400417622,1767534301303,300.0,0.00015797,2]
[400417623,1767534301604,522.09406938,0.00015797,2]
[400417624,1767534301630,677.90593062,0.00015797,2]
[400417625,1767534304462,300.0,0.00015797,2]
[400417626,1767534306146,274.70795849,0.00015797,2]
[400417627,1767534313884,200.0,0.00015798,2]
[400417628,1767534316304,186.83687558,0.00015797,2]
[400417629,1767534317358,500.0,0.00015797,2]
[400417630,1767534317591,500.0,0.00015797,2]
[400417631,1767534317819,624.79134735,0.00015797,2]
[400417632,1767534320543,500.0,0.00015797,2]
[400417633,1767534320594,500.0,0.00015797,2]
[400417634,1767534320673,500.0,0.00015797,2]
[400417635,1767534320720,348.60986997,0.00015797,2]
[400417636,1767534320765,500.0,0.00015797,2]
[400417637,1767534320810,500.0,0.00015797,2]
[400417638,1767534320869,500.0,0.00015797,2]
[400417639,1767534331589,-200000.0,0.00015798,2]
[400417640,1767534336545,193.24993771,0.00015797,2]
[400417641,1767534338067,499.99999999,0.00015797,2]
[400417642,1767534347031,500.0,0.00015797,2]
[400417643,1767534347251,500.0,0.00015797,2]
[400417644,1767534362480,4869.58978955,0.00015698,2]
[400417645,1767534364191,175.68848696,0.00015698,2]
[400417646,1767534365658,595.20438035,0.00015797,2]
[400417647,1767534368439,500.0,0.00015797,2]
[400417648,1767534368711,500.0,0.00015797,2]
[400417649,1767534368950,497.77022115,0.00015797,2]
[400417650,1767534389933,-6955.66520228,0.00015798,2]
[400417651,1767534390106,-10000.01,0.00015798,2]
[400417652,1767534390237,-10000.01,0.00015798,2]
[400417653,1767534390418,-10000.01,0.00015798,2]
[400417654,1767534390568,-10000.01,0.00015798,2]
[400417655,1767534421616,300.0,0.00015797,2]
[400417656,1767534423193,168.57785664,0.00015698,2]
[400417657,1767534423382,4574.13,0.00015476,2]
[400417658,1767534429764,166.37,0.00015425,2]
[400417659,1767534433186,-19793.38206204,0.00015798,2]
[400417660,1767534433564,1600.0,0.00015435,2]
[400417661,1767534437377,-3190.93214336,0.00015798,2]
[400417662,1767534439870,-10000.01,0.00015798,2]
[400417663,1767534441592,-10000.01,0.00015798,2]
[400417664,1767534442580,-10000.01,0.00015798,2]
[400417665,1767534442727,-10000.01,0.00015798,2]
[400417666,1767534442867,-10000.01,0.00015798,2]
[400417667,1767534450112,-571.08877103,0.00015798,2]
[400417668,1767534482532,300.0,0.00015797,2]
[400417669,1767534485986,192.29557094,0.00015797,2]
[400417670,1767534487990,547.0,0.00032713,120]
[400417671,1767534491979,242.21585592,0.00015797,2]
[400417672,1767534494834,1200.0,0.00015797,2]
[400417679,1767534500934,427.62331889,0.00015797,2]
[400417693,1767534522054,547.38841159,0.00015797,2]
[400417694,1767534528426,500.0,0.00015797,2]
[400417695,1767534528696,500.0,0.00015797,2]
[400417696,1767534528947,500.0,0.00015797,2]
[400417700,1767534537148,500.0,0.00015797,2]
[400417701,1767534537200,374.86492478,0.00015797,2]
[400417704,1767534544078,4715.62191788,0.00015698,2]
[400417705,1767534544105,7620.61068212,0.00015698,2]
[400417706,1767534549631,848.41034737,0.00015797,2]
[400417708,1767534559899,1530.98897051,0.00015698,2]
[400417709,1767534559936,10000.01,0.00015698,2]
[400417710,1767534559972,10000.01,0.00015698,2]
[400417711,1767534560006,10000.01,0.00015698,2]
[400417712,1767534560040,10000.01,0.00015698,2]
[400417713,1767534560077,10000.01,0.00015698,2]
[400417714,1767534560110,10000.01,0.00015698,2]
[400417715,1767534560142,10000.01,0.00015698,2]
[400417716,1767534560172,10000.01,0.00015698,2]
[400417717,1767534560201,10000.01,0.00015698,2]
[400417737,1767534569097,-1528.4851404,0.00015698,2]
[400417751,1767534601207,1200.0,0.00015697,2]
[400417752,1767534601244,300.0,0.00015697,2]
[400417754,1767534603328,281.0,0.00015698,2]
[400417755,1767534605218,8219.01,0.00015688,2]
[400417756,1767534605247,10000.01,0.00015688,2]
[400417757,1767534605277,709.68,0.00015688,2]
[400417758,1767534605517,9290.33,0.00015688,2]
[400417759,1767534605546,9638.37,0.00015688,2]
[400417761,1767534629892,150.0,0.00015332,2]
[400417762,1767534631176,204.93951531,0.00015598,2]
[400417774,1767534632191,-2471.96661148,0.00015698,2]
[400417776,1767534632204,-2354.96308394,0.00015698,2]
[400417778,1767534632247,-860.0,0.00015698,2]
[400417779,1767534632290,-72982.78308306,0.00015698,2]
[400417780,1767534632322,-2406.72410067,0.00015698,2]
[400417781,1767534632334,-1794.47750331,0.00015698,2]
[400417782,1767534632346,-2010.45162671,0.00015698,2]
[400417783,1767534632361,-3124.78462949,0.00015698,2]
[400417784,1767534632372,-824.83,0.00015698,2]
[400417785,1767534632384,-4588.46274898,0.00015698,2]
[400417786,1767534632396,-344.81,0.00015698,2]
[400417787,1767534632411,-477.97880591,0.00015698,2]
[400417788,1767534632423,-1077.12332908,0.00015698,2]
[400417789,1767534632434,-1342.64096061,0.00015698,2]